Workbook

Sheet Approximating Pi
B2: You can use an excel table, the Lebiniz formula, and the alternating series estimation theorem to correctly compute as many of the digits of π as you want!
F4: For more details see page 774 in the Stewart text, or en.wikipedia.org/wiki/Leibniz_formula_for_π
B5: Lebiniz formula:
B8: Using the Table (below), how many terms do you need to ensure that you have …
C9: 1. One digit of accuracy (π starts with a 3)?
C10: 2. Two digits of accuracy (π starts with 3.1)?
C11: 2. Two digits of accuracy (π starts with 3.14)?
B13: Using the Macro (the button and box on the right),
C14: 1. Fill in the table on the next spreadsheet.
C15: 2. Decide if it is wise to try to use this method to find π to 100 decimal places!
C16: 3. Read en.wikipedia.org/wiki/Leibniz_formula_for_π to learn more!
C18: n | D18: n^th term (a_n) | E18: Current approximation of π (4*s_n) | F18: Alternating Series bound on the error of the previous approximation of π (4*|error of s_{n-1}| ≤ 4*a_n) | I18: You can compute more digits of π using a computer program. (Like this Excel Macro!)
C19: 0 | D19: =(-1)^C19/(2*C19+1) -> 1 | E19: =4*SUM($D$19:D19) -> 4 | F19: =4*Table1[[#This Row],[n^th term (a_n)]] -> 4 | I19: Desired # of digits of π: | K19: 3
C20: =C19+1 -> 1 | D20: =(-1)^C20/(2*C20+1) -> -0.3333333333 | E20: =4*SUM($D$19:D20) -> 2.666666667 | F20: =4*Table1[[#This Row],[n^th term (a_n)]] -> -1.333333333 | I20: Approximation of π: | K20: 3.143187549
C21: 2 | D21: =(-1)^C21/(2*C21+1) -> 0.2 | E21: =4*SUM($D$19:D21) -> 3.466666667 | F21: =4*Table1[[#This Row],[n^th term (a_n)]] -> 0.8 | I21: Terms needed: | K21: 627
C22: 3 | D22: -0.1428571429 | E22: =4*SUM($D$19:D22) -> 2.895238095 | F22: =4*Table1[[#This Row],[n^th term (a_n)]] -> -0.5714285714
C23: 4 | D23: 0.1111111111 | E23: =4*SUM($D$19:D23) -> 3.33968254 | F23: =4*Table1[[#This Row],[n^th term (a_n)]] -> 0.4444444444
C24: 5 | D24: -0.09090909091 | E24: =4*SUM($D$19:D24) -> 2.976046176 | F24: =4*Table1[[#This Row],[n^th term (a_n)]] -> -0.3636363636 | H24: WARNING!
C25: 6 | D25: 0.07692307692 | E25: =4*SUM($D$19:D25) -> 3.283738484 | F25: =4*Table1[[#This Row],[n^th term (a_n)]] -> 0.3076923077 | H25: Be sure to save all open documents before playing with "Desired # of digits".
C26: 7 | D26: -0.06666666667 | E26: =4*SUM($D$19:D26) -> 3.017071817 | F26: =4*Table1[[#This Row],[n^th term (a_n)]] -> -0.2666666667
C27: 8 | D27: 0.05882352941 | E27: =4*SUM($D$19:D27) -> 3.252365935 | F27: =4*Table1[[#This Row],[n^th term (a_n)]] -> 0.2352941176
C28: 9 | D28: -0.05263157895 | E28: =4*SUM($D$19:D28) -> 3.041839619 | F28: =4*Table1[[#This Row],[n^th term (a_n)]] -> -0.2105263158
C29: 10 | D29: 0.04761904762 | E29: =4*SUM($D$19:D29) -> 3.232315809 | F29: =4*Table1[[#This Row],[n^th term (a_n)]] -> 0.1904761905
C30: 11 | D30: -0.04347826087 | E30: =4*SUM($D$19:D30) -> 3.058402766 | F30: =4*Table1[[#This Row],[n^th term (a_n)]] -> -0.1739130435 | H30: Computing π is time consuming, and might crash Microsoft Excel!
C31: 12 | D31: 0.04 | E31: =4*SUM($D$19:D31) -> 3.218402766 | F31: =4*Table1[[#This Row],[n^th term (a_n)]] -> 0.16
C32: 13 | D32: -0.03703703704 | E32: =4*SUM($D$19:D32) -> 3.070254618 | F32: =4*Table1[[#This Row],[n^th term (a_n)]] -> -0.1481481481
C33: 14 | D33: 0.03448275862 | E33: =4*SUM($D$19:D33) -> 3.208185652 | F33: =4*Table1[[#This Row],[n^th term (a_n)]] -> 0.1379310345
C34: 15 | D34: -0.03225806452 | E34: =4*SUM($D$19:D34) -> 3.079153394 | F34: =4*Table1[[#This Row],[n^th term (a_n)]] -> -0.1290322581
C35: 16 | D35: 0.0303030303 | E35: =4*SUM($D$19:D35) -> 3.200365515 | F35: =4*Table1[[#This Row],[n^th term (a_n)]] -> 0.1212121212
C36: 17 | D36: -0.02857142857 | E36: =4*SUM($D$19:D36) -> 3.086079801 | F36: =4*Table1[[#This Row],[n^th term (a_n)]] -> -0.1142857143
C37: 18 | D37: 0.02702702703 | E37: =4*SUM($D$19:D37) -> 3.194187909 | F37: =4*Table1[[#This Row],[n^th term (a_n)]] -> 0.1081081081
C38: 19 | D38: -0.02564102564 | E38: =4*SUM($D$19:D38) -> 3.091623807 | F38: =4*Table1[[#This Row],[n^th term (a_n)]] -> -0.1025641026
C39: 20 | D39: 0.0243902439 | E39: =4*SUM($D$19:D39) -> 3.189184782 | F39: =4*Table1[[#This Row],[n^th term (a_n)]] -> 0.09756097561
C40: 21 | D40: -0.02325581395 | E40: =4*SUM($D$19:D40) -> 3.096161526 | F40: =4*Table1[[#This Row],[n^th term (a_n)]] -> -0.09302325581
C41: 22 | D41: 0.02222222222 | E41: =4*SUM($D$19:D41) -> 3.185050415 | F41: =4*Table1[[#This Row],[n^th term (a_n)]] -> 0.08888888889
C42: 23 | D42: -0.02127659574 | E42: =4*SUM($D$19:D42) -> 3.099944032 | F42: =4*Table1[[#This Row],[n^th term (a_n)]] -> -0.08510638298
C43: 24 | D43: 0.02040816327 | E43: =4*SUM($D$19:D43) -> 3.181576685 | F43: =4*Table1[[#This Row],[n^th term (a_n)]] -> 0.08163265306
C44: 25 | D44: -0.01960784314 | E44: =4*SUM($D$19:D44) -> 3.103145313 | F44: =4*Table1[[#This Row],[n^th term (a_n)]] -> -0.07843137255
C45: 26 | D45: 0.01886792453 | E45: =4*SUM($D$19:D45) -> 3.178617011 | F45: =4*Table1[[#This Row],[n^th term (a_n)]] -> 0.07547169811
C46: 27 | D46: -0.01818181818 | E46: =4*SUM($D$19:D46) -> 3.105889738 | F46: =4*Table1[[#This Row],[n^th term (a_n)]] -> -0.07272727273
C47: 28 | D47: 0.01754385965 | E47: =4*SUM($D$19:D47) -> 3.176065177 | F47: =4*Table1[[#This Row],[n^th term (a_n)]] -> 0.0701754386
C48: 29 | D48: -0.01694915254 | E48: =4*SUM($D$19:D48) -> 3.108268567 | F48: =4*Table1[[#This Row],[n^th term (a_n)]] -> -0.06779661017
C49: 30 | D49: 0.01639344262 | E49: =4*SUM($D$19:D49) -> 3.173842337 | F49: =4*Table1[[#This Row],[n^th term (a_n)]] -> 0.06557377049
C50: 31 | D50: -0.01587301587 | E50: =4*SUM($D$19:D50) -> 3.110350274 | F50: =4*Table1[[#This Row],[n^th term (a_n)]] -> -0.06349206349
C51: 32 | D51: 0.01538461538 | E51: =4*SUM($D$19:D51) -> 3.171888735 | F51: =4*Table1[[#This Row],[n^th term (a_n)]] -> 0.06153846154
C52: 33 | D52: -0.01492537313 | E52: =4*SUM($D$19:D52) -> 3.112187243 | F52: =4*Table1[[#This Row],[n^th term (a_n)]] -> -0.05970149254
C53: 34 | D53: 0.01449275362 | E53: =4*SUM($D$19:D53) -> 3.170158257 | F53: =4*Table1[[#This Row],[n^th term (a_n)]] -> 0.05797101449
C54: 35 | D54: -0.01408450704 | E54: =4*SUM($D$19:D54) -> 3.113820229 | F54: =4*Table1[[#This Row],[n^th term (a_n)]] -> -0.05633802817
C55: 36 | D55: 0.01369863014 | E55: =4*SUM($D$19:D55) -> 3.16861475 | F55: =4*Table1[[#This Row],[n^th term (a_n)]] -> 0.05479452055
C56: 37 | D56: -0.01333333333 | E56: =4*SUM($D$19:D56) -> 3.115281416 | F56: =4*Table1[[#This Row],[n^th term (a_n)]] -> -0.05333333333
C57: 38 | D57: 0.01298701299 | E57: =4*SUM($D$19:D57) -> 3.167229468 | F57: =4*Table1[[#This Row],[n^th term (a_n)]] -> 0.05194805195
C58: 39 | D58: -0.01265822785 | E58: =4*SUM($D$19:D58) -> 3.116596557 | F58: =4*Table1[[#This Row],[n^th term (a_n)]] -> -0.05063291139
C59: 40 | D59: 0.01234567901 | E59: =4*SUM($D$19:D59) -> 3.165979273 | F59: =4*Table1[[#This Row],[n^th term (a_n)]] -> 0.04938271605
C60: 41 | D60: -0.01204819277 | E60: =4*SUM($D$19:D60) -> 3.117786502 | F60: =4*Table1[[#This Row],[n^th term (a_n)]] -> -0.04819277108
C61: 42 | D61: 0.01176470588 | E61: =4*SUM($D$19:D61) -> 3.164845325 | F61: =4*Table1[[#This Row],[n^th term (a_n)]] -> 0.04705882353
C62: 43 | D62: -0.01149425287 | E62: =4*SUM($D$19:D62) -> 3.118868314 | F62: =4*Table1[[#This Row],[n^th term (a_n)]] -> -0.04597701149
C63: 44 | D63: 0.01123595506 | E63: =4*SUM($D$19:D63) -> 3.163812134 | F63: =4*Table1[[#This Row],[n^th term (a_n)]] -> 0.04494382022
C64: 45 | D64: -0.01098901099 | E64: =4*SUM($D$19:D64) -> 3.11985609 | F64: =4*Table1[[#This Row],[n^th term (a_n)]] -> -0.04395604396
C65: 46 | D65: =(-1)^C65/(2*C65+1) -> 0.01075268817 | E65: =4*SUM($D$19:D65) -> 3.162866843 | F65: =4*Table1[[#This Row],[n^th term (a_n)]] -> 0.04301075269
C66: 47 | D66: -0.01052631579 | E66: =4*SUM($D$19:D66) -> 3.12076158 | F66: =4*Table1[[#This Row],[n^th term (a_n)]] -> -0.04210526316
C67: 48 | D67: =(-1)^C67/(2*C67+1) -> 0.01030927835 | E67: =4*SUM($D$19:D67) -> 3.161998693 | F67: =4*Table1[[#This Row],[n^th term (a_n)]] -> 0.0412371134
C68: 49 | D68: =(-1)^C68/(2*C68+1) -> -0.0101010101 | E68: =4*SUM($D$19:D68) -> 3.121594653 | F68: =4*Table1[[#This Row],[n^th term (a_n)]] -> -0.0404040404
C69: 50 | D69: 0.009900990099 | E69: =4*SUM($D$19:D69) -> 3.161198613 | F69: =4*Table1[[#This Row],[n^th term (a_n)]] -> 0.0396039604
C70: 51 | D70: -0.009708737864 | E70: =4*SUM($D$19:D70) -> 3.122363662 | F70: =4*Table1[[#This Row],[n^th term (a_n)]] -> -0.03883495146
C71: 52 | D71: 0.009523809524 | E71: =4*SUM($D$19:D71) -> 3.1604589 | F71: =4*Table1[[#This Row],[n^th term (a_n)]] -> 0.0380952381
C72: 53 | D72: -0.009345794393 | E72: =4*SUM($D$19:D72) -> 3.123075722 | F72: =4*Table1[[#This Row],[n^th term (a_n)]] -> -0.03738317757
C73: 54 | D73: 0.009174311927 | E73: =4*SUM($D$19:D73) -> 3.15977297 | F73: =4*Table1[[#This Row],[n^th term (a_n)]] -> 0.03669724771
C74: 55 | D74: -0.009009009009 | E74: =4*SUM($D$19:D74) -> 3.123736934 | F74: =4*Table1[[#This Row],[n^th term (a_n)]] -> -0.03603603604
C75: 56 | D75: 0.008849557522 | E75: =4*SUM($D$19:D75) -> 3.159135164 | F75: =4*Table1[[#This Row],[n^th term (a_n)]] -> 0.03539823009
C76: 57 | D76: -0.008695652174 | E76: =4*SUM($D$19:D76) -> 3.124352555 | F76: =4*Table1[[#This Row],[n^th term (a_n)]] -> -0.0347826087
C77: 58 | D77: 0.008547008547 | E77: =4*SUM($D$19:D77) -> 3.158540589 | F77: =4*Table1[[#This Row],[n^th term (a_n)]] -> 0.03418803419
C78: 59 | D78: -0.008403361345 | E78: =4*SUM($D$19:D78) -> 3.124927144 | F78: =4*Table1[[#This Row],[n^th term (a_n)]] -> -0.03361344538
C79: 60 | D79: 0.00826446281 | E79: =4*SUM($D$19:D79) -> 3.157984995 | F79: =4*Table1[[#This Row],[n^th term (a_n)]] -> 0.03305785124
C80: 61 | D80: -0.008130081301 | E80: =4*SUM($D$19:D80) -> 3.12546467 | F80: =4*Table1[[#This Row],[n^th term (a_n)]] -> -0.0325203252
C81: 62 | D81: 0.008 | E81: =4*SUM($D$19:D81) -> 3.15746467 | F81: =4*Table1[[#This Row],[n^th term (a_n)]] -> 0.032
C82: 63 | D82: -0.007874015748 | E82: =4*SUM($D$19:D82) -> 3.125968607 | F82: =4*Table1[[#This Row],[n^th term (a_n)]] -> -0.03149606299
C83: =C82+1 -> 64 | D83: 0.007751937984 | E83: =4*SUM($D$19:D83) -> 3.156976359 | F83: =4*Table1[[#This Row],[n^th term (a_n)]] -> 0.03100775194
C84: 65 | D84: -0.007633587786 | E84: =4*SUM($D$19:D84) -> 3.126442008 | F84: =4*Table1[[#This Row],[n^th term (a_n)]] -> -0.03053435115
C85: 66 | D85: 0.007518796992 | E85: =4*SUM($D$19:D85) -> 3.156517196 | F85: =4*Table1[[#This Row],[n^th term (a_n)]] -> 0.03007518797
C86: 67 | D86: -0.007407407407 | E86: =4*SUM($D$19:D86) -> 3.126887566 | F86: =4*Table1[[#This Row],[n^th term (a_n)]] -> -0.02962962963
C87: 68 | D87: 0.007299270073 | E87: =4*SUM($D$19:D87) -> 3.156084646 | F87: =4*Table1[[#This Row],[n^th term (a_n)]] -> 0.02919708029
C88: 69 | D88: -0.007194244604 | E88: =4*SUM($D$19:D88) -> 3.127307668 | F88: =4*Table1[[#This Row],[n^th term (a_n)]] -> -0.02877697842
C89: 70 | D89: 0.007092198582 | E89: =4*SUM($D$19:D89) -> 3.155676462 | F89: =4*Table1[[#This Row],[n^th term (a_n)]] -> 0.02836879433
C90: 71 | D90: -0.006993006993 | E90: =4*SUM($D$19:D90) -> 3.127704434 | F90: =4*Table1[[#This Row],[n^th term (a_n)]] -> -0.02797202797
C91: 72 | D91: 0.006896551724 | E91: =4*SUM($D$19:D91) -> 3.155290641 | F91: =4*Table1[[#This Row],[n^th term (a_n)]] -> 0.0275862069
C92: 73 | D92: -0.006802721088 | E92: =4*SUM($D$19:D92) -> 3.128079757 | F92: =4*Table1[[#This Row],[n^th term (a_n)]] -> -0.02721088435
C93: 74 | D93: 0.006711409396 | E93: =4*SUM($D$19:D93) -> 3.154925394 | F93: =4*Table1[[#This Row],[n^th term (a_n)]] -> 0.02684563758
C94: 75 | D94: -0.006622516556 | E94: =4*SUM($D$19:D94) -> 3.128435328 | F94: =4*Table1[[#This Row],[n^th term (a_n)]] -> -0.02649006623
C95: 76 | D95: 0.006535947712 | E95: =4*SUM($D$19:D95) -> 3.154579119 | F95: =4*Table1[[#This Row],[n^th term (a_n)]] -> 0.02614379085
C96: 77 | D96: -0.006451612903 | E96: =4*SUM($D$19:D96) -> 3.128772667 | F96: =4*Table1[[#This Row],[n^th term (a_n)]] -> -0.02580645161
C97: 78 | D97: 0.006369426752 | E97: =4*SUM($D$19:D97) -> 3.154250374 | F97: =4*Table1[[#This Row],[n^th term (a_n)]] -> 0.02547770701
C98: 79 | D98: -0.006289308176 | E98: =4*SUM($D$19:D98) -> 3.129093142 | F98: =4*Table1[[#This Row],[n^th term (a_n)]] -> -0.0251572327
C99: 80 | D99: 0.006211180124 | E99: =4*SUM($D$19:D99) -> 3.153937862 | F99: =4*Table1[[#This Row],[n^th term (a_n)]] -> 0.0248447205
C100: 81 | D100: =(-1)^C100/(2*C100+1) -> -0.006134969325 | E100: =4*SUM($D$19:D100) -> 3.129397985 | F100: =4*Table1[[#This Row],[n^th term (a_n)]] -> -0.0245398773
C101: 82 | D101: 0.006060606061 | E101: =4*SUM($D$19:D101) -> 3.153640409 | F101: =4*Table1[[#This Row],[n^th term (a_n)]] -> 0.02424242424
C102: 83 | D102: -0.005988023952 | E102: =4*SUM($D$19:D102) -> 3.129688313 | F102: =4*Table1[[#This Row],[n^th term (a_n)]] -> -0.02395209581
C103: 84 | D103: 0.005917159763 | E103: =4*SUM($D$19:D103) -> 3.153356952 | F103: =4*Table1[[#This Row],[n^th term (a_n)]] -> 0.02366863905
C104: 85 | D104: -0.005847953216 | E104: =4*SUM($D$19:D104) -> 3.12996514 | F104: =4*Table1[[#This Row],[n^th term (a_n)]] -> -0.02339181287
C105: 86 | D105: 0.005780346821 | E105: =4*SUM($D$19:D105) -> 3.153086527 | F105: =4*Table1[[#This Row],[n^th term (a_n)]] -> 0.02312138728
C106: 87 | D106: -0.005714285714 | E106: =4*SUM($D$19:D106) -> 3.130229384 | F106: =4*Table1[[#This Row],[n^th term (a_n)]] -> -0.02285714286
C107: 88 | D107: 0.005649717514 | E107: =4*SUM($D$19:D107) -> 3.152828254 | F107: =4*Table1[[#This Row],[n^th term (a_n)]] -> 0.02259887006
C108: 89 | D108: -0.005586592179 | E108: =4*SUM($D$19:D108) -> 3.130481885 | F108: =4*Table1[[#This Row],[n^th term (a_n)]] -> -0.02234636872
C109: 90 | D109: 0.005524861878 | E109: =4*SUM($D$19:D109) -> 3.152581333 | F109: =4*Table1[[#This Row],[n^th term (a_n)]] -> 0.02209944751
C110: 91 | D110: -0.005464480874 | E110: =4*SUM($D$19:D110) -> 3.130723409 | F110: =4*Table1[[#This Row],[n^th term (a_n)]] -> -0.0218579235
C111: 92 | D111: 0.005405405405 | E111: =4*SUM($D$19:D111) -> 3.152345031 | F111: =4*Table1[[#This Row],[n^th term (a_n)]] -> 0.02162162162
C112: 93 | D112: -0.005347593583 | E112: =4*SUM($D$19:D112) -> 3.130954657 | F112: =4*Table1[[#This Row],[n^th term (a_n)]] -> -0.02139037433
C113: 94 | D113: 0.005291005291 | E113: =4*SUM($D$19:D113) -> 3.152118678 | F113: =4*Table1[[#This Row],[n^th term (a_n)]] -> 0.02116402116
C114: 95 | D114: -0.005235602094 | E114: =4*SUM($D$19:D114) -> 3.131176269 | F114: =4*Table1[[#This Row],[n^th term (a_n)]] -> -0.02094240838
C115: 96 | D115: 0.00518134715 | E115: =4*SUM($D$19:D115) -> 3.151901658 | F115: =4*Table1[[#This Row],[n^th term (a_n)]] -> 0.0207253886
C116: 97 | D116: -0.005128205128 | E116: =4*SUM($D$19:D116) -> 3.131388838 | F116: =4*Table1[[#This Row],[n^th term (a_n)]] -> -0.02051282051
C117: 98 | D117: 0.005076142132 | E117: =4*SUM($D$19:D117) -> 3.151693406 | F117: =4*Table1[[#This Row],[n^th term (a_n)]] -> 0.02030456853
C118: 99 | D118: -0.005025125628 | E118: =4*SUM($D$19:D118) -> 3.131592904 | F118: =4*Table1[[#This Row],[n^th term (a_n)]] -> -0.02010050251
C119: 100 | D119: 0.004975124378 | E119: =4*SUM($D$19:D119) -> 3.151493401 | F119: =4*Table1[[#This Row],[n^th term (a_n)]] -> 0.01990049751
C120: 101 | D120: -0.004926108374 | E120: =4*SUM($D$19:D120) -> 3.131788968 | F120: =4*Table1[[#This Row],[n^th term (a_n)]] -> -0.0197044335
C121: 102 | D121: 0.00487804878 | E121: =4*SUM($D$19:D121) -> 3.151301163 | F121: =4*Table1[[#This Row],[n^th term (a_n)]] -> 0.01951219512
C122: 103 | D122: -0.004830917874 | E122: =4*SUM($D$19:D122) -> 3.131977491 | F122: =4*Table1[[#This Row],[n^th term (a_n)]] -> -0.0193236715
C123: 104 | D123: 0.004784688995 | E123: =4*SUM($D$19:D123) -> 3.151116247 | F123: =4*Table1[[#This Row],[n^th term (a_n)]] -> 0.01913875598
C124: 105 | D124: -0.004739336493 | E124: =4*SUM($D$19:D124) -> 3.132158901 | F124: =4*Table1[[#This Row],[n^th term (a_n)]] -> -0.01895734597
C125: 106 | D125: =(-1)^C125/(2*C125+1) -> 0.004694835681 | E125: =4*SUM($D$19:D125) -> 3.150938244 | F125: =4*Table1[[#This Row],[n^th term (a_n)]] -> 0.01877934272
C126: 107 | D126: -0.004651162791 | E126: =4*SUM($D$19:D126) -> 3.132333593 | F126: =4*Table1[[#This Row],[n^th term (a_n)]] -> -0.01860465116
C127: 108 | D127: 0.004608294931 | E127: =4*SUM($D$19:D127) -> 3.150766772 | F127: =4*Table1[[#This Row],[n^th term (a_n)]] -> 0.01843317972
C128: 109 | D128: -0.004566210046 | E128: =4*SUM($D$19:D128) -> 3.132501932 | F128: =4*Table1[[#This Row],[n^th term (a_n)]] -> -0.01826484018
C129: 110 | D129: 0.004524886878 | E129: =4*SUM($D$19:D129) -> 3.15060148 | F129: =4*Table1[[#This Row],[n^th term (a_n)]] -> 0.01809954751
C130: 111 | D130: -0.004484304933 | E130: =4*SUM($D$19:D130) -> 3.13266426 | F130: =4*Table1[[#This Row],[n^th term (a_n)]] -> -0.01793721973
C131: 112 | D131: 0.004444444444 | E131: =4*SUM($D$19:D131) -> 3.150442038 | F131: =4*Table1[[#This Row],[n^th term (a_n)]] -> 0.01777777778
C132: 113 | D132: -0.004405286344 | E132: =4*SUM($D$19:D132) -> 3.132820892 | F132: =4*Table1[[#This Row],[n^th term (a_n)]] -> -0.01762114537
C133: 114 | D133: 0.004366812227 | E133: =4*SUM($D$19:D133) -> 3.150288141 | F133: =4*Table1[[#This Row],[n^th term (a_n)]] -> 0.01746724891
C134: 115 | D134: -0.004329004329 | E134: =4*SUM($D$19:D134) -> 3.132972124 | F134: =4*Table1[[#This Row],[n^th term (a_n)]] -> -0.01731601732
C135: 116 | D135: 0.004291845494 | E135: =4*SUM($D$19:D135) -> 3.150139506 | F135: =4*Table1[[#This Row],[n^th term (a_n)]] -> 0.01716738197
C136: 117 | D136: -0.004255319149 | E136: =4*SUM($D$19:D136) -> 3.133118229 | F136: =4*Table1[[#This Row],[n^th term (a_n)]] -> -0.0170212766
C137: 118 | D137: 0.004219409283 | E137: =4*SUM($D$19:D137) -> 3.149995867 | F137: =4*Table1[[#This Row],[n^th term (a_n)]] -> 0.01687763713
C138: 119 | D138: -0.004184100418 | E138: =4*SUM($D$19:D138) -> 3.133259465 | F138: =4*Table1[[#This Row],[n^th term (a_n)]] -> -0.01673640167
C139: 120 | D139: 0.004149377593 | E139: =4*SUM($D$19:D139) -> 3.149856975 | F139: =4*Table1[[#This Row],[n^th term (a_n)]] -> 0.01659751037
C140: 121 | D140: -0.004115226337 | E140: =4*SUM($D$19:D140) -> 3.13339607 | F140: =4*Table1[[#This Row],[n^th term (a_n)]] -> -0.01646090535
C141: 122 | D141: 0.004081632653 | E141: =4*SUM($D$19:D141) -> 3.149722601 | F141: =4*Table1[[#This Row],[n^th term (a_n)]] -> 0.01632653061
C142: 123 | D142: -0.004048582996 | E142: =4*SUM($D$19:D142) -> 3.133528269 | F142: =4*Table1[[#This Row],[n^th term (a_n)]] -> -0.01619433198
C143: 124 | D143: 0.004016064257 | E143: =4*SUM($D$19:D143) -> 3.149592526 | F143: =4*Table1[[#This Row],[n^th term (a_n)]] -> 0.01606425703
C144: 125 | D144: -0.003984063745 | E144: =4*SUM($D$19:D144) -> 3.133656271 | F144: =4*Table1[[#This Row],[n^th term (a_n)]] -> -0.01593625498
C145: 126 | D145: 0.00395256917 | E145: =4*SUM($D$19:D145) -> 3.149466547 | F145: =4*Table1[[#This Row],[n^th term (a_n)]] -> 0.01581027668
C146: 127 | D146: -0.003921568627 | E146: =4*SUM($D$19:D146) -> 3.133780273 | F146: =4*Table1[[#This Row],[n^th term (a_n)]] -> -0.01568627451
C147: =C146+1 -> 128 | D147: 0.003891050584 | E147: =4*SUM($D$19:D147) -> 3.149344475 | F147: =4*Table1[[#This Row],[n^th term (a_n)]] -> 0.01556420233
C148: 129 | D148: -0.003861003861 | E148: =4*SUM($D$19:D148) -> 3.13390046 | F148: =4*Table1[[#This Row],[n^th term (a_n)]] -> -0.01544401544
C149: 130 | D149: 0.003831417625 | E149: =4*SUM($D$19:D149) -> 3.14922613 | F149: =4*Table1[[#This Row],[n^th term (a_n)]] -> 0.0153256705
C150: 131 | D150: -0.003802281369 | E150: =4*SUM($D$19:D150) -> 3.134017005 | F150: =4*Table1[[#This Row],[n^th term (a_n)]] -> -0.01520912548
C151: 132 | D151: 0.003773584906 | E151: =4*SUM($D$19:D151) -> 3.149111344 | F151: =4*Table1[[#This Row],[n^th term (a_n)]] -> 0.01509433962
C152: 133 | D152: -0.003745318352 | E152: =4*SUM($D$19:D152) -> 3.134130071 | F152: =4*Table1[[#This Row],[n^th term (a_n)]] -> -0.01498127341
C153: 134 | D153: 0.003717472119 | E153: =4*SUM($D$19:D153) -> 3.148999959 | F153: =4*Table1[[#This Row],[n^th term (a_n)]] -> 0.01486988848
C154: 135 | D154: -0.0036900369 | E154: =4*SUM($D$19:D154) -> 3.134239812 | F154: =4*Table1[[#This Row],[n^th term (a_n)]] -> -0.0147601476
C155: 136 | D155: 0.003663003663 | E155: =4*SUM($D$19:D155) -> 3.148891826 | F155: =4*Table1[[#This Row],[n^th term (a_n)]] -> 0.01465201465
C156: 137 | D156: -0.003636363636 | E156: =4*SUM($D$19:D156) -> 3.134346372 | F156: =4*Table1[[#This Row],[n^th term (a_n)]] -> -0.01454545455
C157: 138 | D157: =(-1)^C157/(2*C157+1) -> 0.003610108303 | E157: =4*SUM($D$19:D157) -> 3.148786805 | F157: =4*Table1[[#This Row],[n^th term (a_n)]] -> 0.01444043321
C158: 139 | D158: -0.003584229391 | E158: =4*SUM($D$19:D158) -> 3.134449888 | F158: =4*Table1[[#This Row],[n^th term (a_n)]] -> -0.01433691756
C159: 140 | D159: 0.003558718861 | E159: =4*SUM($D$19:D159) -> 3.148684763 | F159: =4*Table1[[#This Row],[n^th term (a_n)]] -> 0.01423487544
C160: 141 | D160: -0.003533568905 | E160: =4*SUM($D$19:D160) -> 3.134550487 | F160: =4*Table1[[#This Row],[n^th term (a_n)]] -> -0.01413427562
C161: 142 | D161: 0.00350877193 | E161: =4*SUM($D$19:D161) -> 3.148585575 | F161: =4*Table1[[#This Row],[n^th term (a_n)]] -> 0.01403508772
C162: 143 | D162: -0.003484320557 | E162: =4*SUM($D$19:D162) -> 3.134648293 | F162: =4*Table1[[#This Row],[n^th term (a_n)]] -> -0.01393728223
C163: 144 | D163: 0.003460207612 | E163: =4*SUM($D$19:D163) -> 3.148489123 | F163: =4*Table1[[#This Row],[n^th term (a_n)]] -> 0.01384083045
C164: 145 | D164: -0.003436426117 | E164: =4*SUM($D$19:D164) -> 3.134743419 | F164: =4*Table1[[#This Row],[n^th term (a_n)]] -> -0.01374570447
C165: 146 | D165: 0.003412969283 | E165: =4*SUM($D$19:D165) -> 3.148395296 | F165: =4*Table1[[#This Row],[n^th term (a_n)]] -> 0.01365187713
C166: 147 | D166: -0.003389830508 | E166: =4*SUM($D$19:D166) -> 3.134835974 | F166: =4*Table1[[#This Row],[n^th term (a_n)]] -> -0.01355932203
C167: 148 | D167: 0.003367003367 | E167: =4*SUM($D$19:D167) -> 3.148303987 | F167: =4*Table1[[#This Row],[n^th term (a_n)]] -> 0.01346801347
C168: 149 | D168: -0.003344481605 | E168: =4*SUM($D$19:D168) -> 3.134926061 | F168: =4*Table1[[#This Row],[n^th term (a_n)]] -> -0.01337792642
C169: 150 | D169: 0.003322259136 | E169: =4*SUM($D$19:D169) -> 3.148215098 | F169: =4*Table1[[#This Row],[n^th term (a_n)]] -> 0.01328903654
C170: 151 | D170: -0.003300330033 | E170: =4*SUM($D$19:D170) -> 3.135013777 | F170: =4*Table1[[#This Row],[n^th term (a_n)]] -> -0.01320132013
C171: 152 | D171: 0.003278688525 | E171: =4*SUM($D$19:D171) -> 3.148128532 | F171: =4*Table1[[#This Row],[n^th term (a_n)]] -> 0.0131147541
C172: 153 | D172: -0.00325732899 | E172: =4*SUM($D$19:D172) -> 3.135099216 | F172: =4*Table1[[#This Row],[n^th term (a_n)]] -> -0.01302931596
C173: 154 | D173: 0.003236245955 | E173: =4*SUM($D$19:D173) -> 3.148044199 | F173: =4*Table1[[#This Row],[n^th term (a_n)]] -> 0.01294498382
C174: 155 | D174: -0.003215434084 | E174: =4*SUM($D$19:D174) -> 3.135182463 | F174: =4*Table1[[#This Row],[n^th term (a_n)]] -> -0.01286173633
C175: 156 | D175: 0.003194888179 | E175: =4*SUM($D$19:D175) -> 3.147962016 | F175: =4*Table1[[#This Row],[n^th term (a_n)]] -> 0.01277955272
C176: 157 | D176: -0.003174603175 | E176: =4*SUM($D$19:D176) -> 3.135263603 | F176: =4*Table1[[#This Row],[n^th term (a_n)]] -> -0.0126984127
C177: 158 | D177: 0.003154574132 | E177: =4*SUM($D$19:D177) -> 3.1478819 | F177: =4*Table1[[#This Row],[n^th term (a_n)]] -> 0.01261829653
C178: 159 | D178: -0.003134796238 | E178: =4*SUM($D$19:D178) -> 3.135342715 | F178: =4*Table1[[#This Row],[n^th term (a_n)]] -> -0.01253918495
C179: 160 | D179: 0.003115264798 | E179: =4*SUM($D$19:D179) -> 3.147803774 | F179: =4*Table1[[#This Row],[n^th term (a_n)]] -> 0.01246105919
C180: 161 | D180: -0.003095975232 | E180: =4*SUM($D$19:D180) -> 3.135419873 | F180: =4*Table1[[#This Row],[n^th term (a_n)]] -> -0.01238390093
C181: 162 | D181: 0.003076923077 | E181: =4*SUM($D$19:D181) -> 3.147727565 | F181: =4*Table1[[#This Row],[n^th term (a_n)]] -> 0.01230769231
C182: 163 | D182: -0.003058103976 | E182: =4*SUM($D$19:D182) -> 3.135495149 | F182: =4*Table1[[#This Row],[n^th term (a_n)]] -> -0.0122324159
C183: 164 | D183: 0.003039513678 | E183: =4*SUM($D$19:D183) -> 3.147653204 | F183: =4*Table1[[#This Row],[n^th term (a_n)]] -> 0.01215805471
C184: 165 | D184: -0.003021148036 | E184: =4*SUM($D$19:D184) -> 3.135568612 | F184: =4*Table1[[#This Row],[n^th term (a_n)]] -> -0.01208459215
C185: 166 | D185: 0.003003003003 | E185: =4*SUM($D$19:D185) -> 3.147580624 | F185: =4*Table1[[#This Row],[n^th term (a_n)]] -> 0.01201201201
C186: 167 | D186: -0.002985074627 | E186: =4*SUM($D$19:D186) -> 3.135640325 | F186: =4*Table1[[#This Row],[n^th term (a_n)]] -> -0.01194029851
C187: 168 | D187: 0.00296735905 | E187: =4*SUM($D$19:D187) -> 3.147509762 | F187: =4*Table1[[#This Row],[n^th term (a_n)]] -> 0.0118694362
C188: 169 | D188: -0.002949852507 | E188: =4*SUM($D$19:D188) -> 3.135710352 | F188: =4*Table1[[#This Row],[n^th term (a_n)]] -> -0.01179941003
C189: 170 | D189: =(-1)^C189/(2*C189+1) -> 0.00293255132 | E189: =4*SUM($D$19:D189) -> 3.147440557 | F189: =4*Table1[[#This Row],[n^th term (a_n)]] -> 0.01173020528
C190: 171 | D190: -0.002915451895 | E190: =4*SUM($D$19:D190) -> 3.135778749 | F190: =4*Table1[[#This Row],[n^th term (a_n)]] -> -0.01166180758
C191: 172 | D191: 0.002898550725 | E191: =4*SUM($D$19:D191) -> 3.147372952 | F191: =4*Table1[[#This Row],[n^th term (a_n)]] -> 0.0115942029
C192: 173 | D192: -0.00288184438 | E192: =4*SUM($D$19:D192) -> 3.135845575 | F192: =4*Table1[[#This Row],[n^th term (a_n)]] -> -0.01152737752
C193: 174 | D193: 0.002865329513 | E193: =4*SUM($D$19:D193) -> 3.147306893 | F193: =4*Table1[[#This Row],[n^th term (a_n)]] -> 0.01146131805
C194: 175 | D194: -0.002849002849 | E194: =4*SUM($D$19:D194) -> 3.135910881 | F194: =4*Table1[[#This Row],[n^th term (a_n)]] -> -0.0113960114
C195: 176 | D195: 0.00283286119 | E195: =4*SUM($D$19:D195) -> 3.147242326 | F195: =4*Table1[[#This Row],[n^th term (a_n)]] -> 0.01133144476
C196: 177 | D196: -0.002816901408 | E196: =4*SUM($D$19:D196) -> 3.13597472 | F196: =4*Table1[[#This Row],[n^th term (a_n)]] -> -0.01126760563
C197: 178 | D197: 0.002801120448 | E197: =4*SUM($D$19:D197) -> 3.147179202 | F197: =4*Table1[[#This Row],[n^th term (a_n)]] -> 0.01120448179
C198: 179 | D198: -0.00278551532 | E198: =4*SUM($D$19:D198) -> 3.136037141 | F198: =4*Table1[[#This Row],[n^th term (a_n)]] -> -0.01114206128
C199: 180 | D199: 0.002770083102 | E199: =4*SUM($D$19:D199) -> 3.147117473 | F199: =4*Table1[[#This Row],[n^th term (a_n)]] -> 0.01108033241
C200: 181 | D200: -0.002754820937 | E200: =4*SUM($D$19:D200) -> 3.13609819 | F200: =4*Table1[[#This Row],[n^th term (a_n)]] -> -0.01101928375
C201: 182 | D201: 0.002739726027 | E201: =4*SUM($D$19:D201) -> 3.147057094 | F201: =4*Table1[[#This Row],[n^th term (a_n)]] -> 0.01095890411
C202: 183 | D202: -0.00272479564 | E202: =4*SUM($D$19:D202) -> 3.136157911 | F202: =4*Table1[[#This Row],[n^th term (a_n)]] -> -0.01089918256
C203: 184 | D203: 0.0027100271 | E203: =4*SUM($D$19:D203) -> 3.14699802 | F203: =4*Table1[[#This Row],[n^th term (a_n)]] -> 0.0108401084
C204: 185 | D204: -0.00269541779 | E204: =4*SUM($D$19:D204) -> 3.136216348 | F204: =4*Table1[[#This Row],[n^th term (a_n)]] -> -0.01078167116
C205: 186 | D205: 0.002680965147 | E205: =4*SUM($D$19:D205) -> 3.146940209 | F205: =4*Table1[[#This Row],[n^th term (a_n)]] -> 0.01072386059
C206: 187 | D206: -0.002666666667 | E206: =4*SUM($D$19:D206) -> 3.136273542 | F206: =4*Table1[[#This Row],[n^th term (a_n)]] -> -0.01066666667
... 1314 more rows

Sheet Graphing Digits vs # of terms
B3: Decimal Digits | C3: Number of terms
B4: 1
B5: 2
B6: 3
B7: 4
B8: 5
B9: 6
B10: 7
B11: 8
B12: 9
